Workbook

Sheet Hoja1
A3: Republica Dominicana
A4: SERVICIO NACIONAL DE SALUD
A5: LISTADO DE ORDENES DE COMPRAS O SERVICIOS PAGADAS DURANTE EL MES DE FEBRERO 2022
A6: ESTABLECIMIENTO_______HOSPITAL PROVINCIAL RICARDO LIMARDO REGION_____II
A7: Fecha | B7: No. Orden de Compra o Servicios | C7: No. De Factura Fiscal NCF | D7: Fuente. Financ (FR-VS) | E7: Beneficiario | F7: Rubro | G7: No. Cta. Objetal del Gasto | H7: Valor
A8: 2023-02-02 | B8: 17779 | C8: B1100000059 | D8: VS | E8: CRISTINO SANTOS CABRERA 2%. | F8: LIMPIEZA DE AREAS VERDES. | G8: 2285-03. | H8: 9,000.00
A10: 2023-01-27 | B10: 17746 | C10: B1500000091 | D10: VS | E10: OSVALDITO ORTIZ. 10% | F10: FLETES. | G10: 2242-01. | H10: 25,000.00
A12: 2023-01-05 | B12: 17593 | C12: B1500000330 | D12: VS | E12: ALMACEN SILVERIO PEREZ, SRL. | F12: ALIMENTOS | G12: 2311-01. | H12: 99,940.40
A13: 2023-01-06 | B13: 17592 | C13: B1500000331 | D13: VS | E13: ALMACEN SILVERIO PEREZ, SRL. | F13: ALIMENTOS, PLASTICOS. | G13: 2311-01/2355-01. | H13: 92,737.50
A14: 2023-01-06 | B14: 17579 | C14: B1500000332 | D14: VS | E14: ALMACEN SILVERIO PEREZ, SRL. | F14: PAPEL | G14: 2332-01 | H14: 62,325.00
A15: 2023-01-13 | B15: 17632 | C15: B1500000333 | D15: VS | E15: ALMACEN SILVERIO PEREZ, SRL. | F15: ALIMENTOS | G15: 2311-01. | H15: 95,370.00
A16: 2023-01-13 | B16: 17631 | C16: B1500000334 | D16: VS | E16: ALMACEN SILVERIO PEREZ, SRL. | F16: ALIMENTOS, PLASTICOS. | G16: 2311-01/2355-01. | H16: 94,765.00
A17: 2023-01-16 | B17: 17648 | C17: B1500000335 | D17: VS | E17: ALMACEN SILVERIO PEREZ, SRL. | F17: PLASTICOS. | G17: 2355-01 | H17: 1,000.00
A18: 2023-01-20 | B18: 17704 | C18: B1500000338 | D18: VS | E18: ALMACEN SILVERIO PEREZ, SRL. | F18: ALIMENTOS, PLASTICOS. | G18: 2311-01/2355-01. | H18: 99,800.00
A19: 2023-01-20 | B19: 17705 | C19: B1500000339 | D19: VS | E19: ALMACEN SILVERIO PEREZ, SRL. | F19: ALIMENTOS | G19: 2311-01. | H19: 98,860.63
A20: 2023-01-27 | B20: 17743 | C20: B1500000340 | D20: VS | E20: ALMACEN SILVERIO PEREZ, SRL. | F20: ALIMENTOS, PLASTICOS. | G20: 2311-01/2355-01. | H20: 89,355.00
A21: 2023-01-27 | B21: 17744 | C21: B1500000341 | D21: VS | E21: ALMACEN SILVERIO PEREZ, SRL. | F21: ALIMENTOS | G21: 2311-01. | H21: 107,432.12
H22: =SUM(H12:H21) -> 841,585.65
A24: 2023-01-31 | B24: 17753 | C24: B1500000049 | D24: VS | E24: CARLOS DAVID TAVAREZ SANTOS. | F24: SERVICIOS DE CATERING P/ CAFETERIA. | G24: 2292-03. | H24: 18,150.00
A26: 2023-01-06 | B26: 17598 | C26: B1500002946 | D26: VS | E26: CENTRO MEDICO BOURNIGAL, S.A.S. | F26: MEDICAMENTOS. | G26: 2341-01. | H26: 1,117.80
A27: 2023-01-09 | B27: 17610 | C27: B1500002947 | D27: VS | E27: CENTRO MEDICO BOURNIGAL, S.A.S. | F27: MATERIAL MEDICO QX. | G27: 2393-01. | H27: 1,470.17
A28: 2023-01-10 | B28: 17607 | C28: B1500002948 | D28: VS | E28: CENTRO MEDICO BOURNIGAL, S.A.S. | F28: MEDICAMENTOS. | G28: 2341-01. | H28: 1,336.08
A29: 2023-01-02 | B29: 17640 | C29: B1500002949 | D29: VS | E29: CENTRO MEDICO BOURNIGAL, S.A.S. | F29: ESTUDIOS REALIZADOS. | G29: 2287-06. | H29: 6,280.00
A30: 2023-01-18 | B30: 17687 | C30: B1500002953 | D30: VS | E30: CENTRO MEDICO BOURNIGAL, S.A.S. | F30: MATERIAL MEDICO QX. | G30: 2393-01. | H30: 1,532.47
A31: 2023-01-20 | B31: 17710 | C31: B1500002955 | D31: VS | E31: CENTRO MEDICO BOURNIGAL, S.A.S. | F31: MEDICAMENTOS. | G31: 2341-01. | H31: 3,327.52
A32: 2023-01-23 | B32: 17716 | C32: B1500002956 | D32: VS | E32: CENTRO MEDICO BOURNIGAL, S.A.S. | F32: MEDICAMENTOS. | G32: 2341-01. | H32: 1,855.23
A33: 2023-01-24 | B33: 17724 | C33: B1500002957 | D33: VS | E33: CENTRO MEDICO BOURNIGAL, S.A.S. | F33: MEDICAMENTOS. | G33: 2341-01. | H33: 4,546.05
A34: 2023-01-25 | B34: 17729 | C34: B1500002958 | D34: VS | E34: CENTRO MEDICO BOURNIGAL, S.A.S. | F34: MEDICAMENTOS. | G34: 2341-01. | H34: 2,049.30
A35: 2023-01-26 | B35: 17739 | C35: B1500002969 | D35: VS | E35: CENTRO MEDICO BOURNIGAL, S.A.S. | F35: MEDICAMENTOS. | G35: 2341-01. | H35: 1,656.00
H36: =SUM(H26:H35) -> 25,170.62
A38: 2023-01-26 | B38: 17751 | C38: B1500001932 | D38: VS | E38: COMBUSTIBLE Y DERIVADOS DEL NORTE, SRL. | F38: COMBUSTIBLES(GASOLINA). | G38: 2371-01. | H38: 27,000.04
A39: 2023-01-26 | B39: 17749 | C39: B1500001933 | D39: VS | E39: COMBUSTIBLE Y DERIVADOS DEL NORTE, SRL. | F39: COMBUSTIBLES(GASOLINA). | G39: 2371-01. | H39: 2,745.00
A40: 2023-01-17 | B40: 17683 | C40: B1500001934 | D40: VS | E40: COMBUSTIBLE Y DERIVADOS DEL NORTE, SRL. | F40: COMBUSTIBLES(GASOIL). | G40: 2371-02. | H40: 11,080.00
A41: 2023-01-26 | B41: 17750 | C41: B1500001935 | D41: VS | E41: COMBUSTIBLE Y DERIVADOS DEL NORTE, SRL. | F41: COMBUSTIBLES(GASOIL). | G41: 2371-02. | H41: 26,898.12
H42: =SUM(H38:H41) -> 67,723.16
A44: 2022-12-03 | B44: 17334 | C44: B1500000902 | D44: VS | E44: GALANES MAGICOS, SRL. | F44: PAPEL, LIMPEZA. | G44: 2391-01./2332-01. | H44: 100,408.50
A45: 2022-12-14 | B45: 17440 | C45: B1500000906 | D45: VS | E45: GALANES MAGICOS, SRL. | F45: ALIMENTOS. | G45: 2311-01. | H45: 7,602.00
A46: 2022-12-16 | B46: 17452 | C46: B1500000911 | D46: VS | E46: GALANES MAGICOS, SRL. | F46: LIMPEZA. | G46: 2391-01 | H46: 7,562.50
H47: =SUM(H44:H46) -> 115,573.00
A49: 2022-12-30 | B49: 17542 | C49: B1500002316 | D49: VS | E49: ING.EDGAR MARTINEZ,SRL | F49: HERRAMIENTAS MENORES. | G49: 2363-04 | H49: 2,640.00
A50: 2023-01-16 | B50: 17649 | C50: B1500002332 | D50: VS | E50: ING.EDGAR MARTINEZ,SRL | F50: HERRAMIENTAS MENORES, ELECTRICOS | G50: 2363-04/2396-01 | H50: 57,699.88
A51: 2023-01-11 | B51: 17637 | C51: B1500002323 | D51: VS | E51: ING.EDGAR MARTINEZ,SRL | F51: CEMENTO ,ARENA. | G51: 2361-01 | H51: 124,401.73
A52: 2023-01-18 | B52: 17692 | C52: B1500002337 | D52: VS | E52: ING.EDGAR MARTINEZ,SRL | F52: METAL. | G52: 2363-06 | H52: 60,475.00
A53: 2023-01-19 | B53: 17693 | C53: B1500002338 | D53: VS | E53: ING.EDGAR MARTINEZ,SRL | F53: METAL. | G53: 2363-06 | H53: 2,010.00
A54: 2023-01-19 | B54: 17699 | C54: B1500002339 | D54: VS | E54: ING.EDGAR MARTINEZ,SRL | F54: MADERA. | G54: 2314-01 | H54: 1,472.00
A55: 2023-01-19 | B55: 17700 | C55: B1500002340 | D55: VS | E55: ING.EDGAR MARTINEZ,SRL | F55: MADERA. | G55: 2314-01 | H55: 1,460.00
A56: 2023-01-25 | B56: 17735 | C56: B1500002354 | D56: VS | E56: ING.EDGAR MARTINEZ,SRL | F56: METAL. | G56: 2363-06 | H56: 10,257.50
A57: 2023-01-25 | B57: 17730 | C57: B1500002355 | D57: VS | E57: ING.EDGAR MARTINEZ,SRL | F57: ELECTRICOS. | G57: 2396-01 | H57: 16,538.75
A58: 2023-01-27 | B58: 17748 | C58: B1500002367 | D58: VS | E58: ING.EDGAR MARTINEZ,SRL | F58: METAL. | G58: 2363-06 | H58: 5,099.44
H59: =SUM(H49:H58) -> 282,054.30
A61: 2023-01-03 | B61: 17554 | C61: B1500000469 | D61: VS | E61: JUAN LUIS ALMONTE REYES. | F61: ALIMENTOS,PLASTICOS,LIMPEZA. | G61: 2311-01/2355-01/2391-01. | H61: 87,478.14
A62: 2023-01-05 | B62: 17580 | C62: B1500000472 | D62: VS | E62: JUAN LUIS ALMONTE REYES. | F62: PLASTICOS | G62: 2355-01 | H62: 163,950.00
A63: 2023-01-10 | B63: 17611 | C63: B1500000473 | D63: VS | E63: JUAN LUIS ALMONTE REYES. | F63: ALIMENTOS,PLASTICOS,LIMPEZA. | G63: 2311-01/2355-01/2391-01. | H63: 47,433.00
A64: 2023-01-13 | B64: 17642 | C64: B1500000474 | D64: VS | E64: JUAN LUIS ALMONTE REYES. | F64: ALIMENTOS,PLASTICOS,LIMPEZA. | G64: 2311-01/2355-01/2391-01. | H64: 172,944.48
A65: 2023-01-23 | B65: 17720 | C65: B1500000479 | D65: VS | E65: JUAN LUIS ALMONTE REYES. | F65: ALIMENTOS,PLASTICOS. | G65: 2311-01/2355-01. | H65: 71,728.26
A66: 2023-01-31 | B66: 17752 | C66: B1500000482 | D66: VS | E66: JUAN LUIS ALMONTE REYES. | F66: ALIMENTOS,PLASTICOS,LIMPEZA. | G66: 2311-01/2355-01/2391-01. | H66: 60,756.50
H67: =SUM(H61:H66) -> 604,290.38
A69: 31/2/2023 | B69: 17763 | C69: B1500000071 | D69: VS | E69: NEYDA M. CRUZ LANTIGUA.10% | F69: PAGO ESTUDIOS REALIZADOS. | G69: 2287-06. | H69: 101,600.00
A71: 2023-02-01 | B71: 17766 | C71: B1500000581 | D71: VS | E71: TELECABLE CENTRAL PUERTO PLATA PP,SRL. | F71: SERVICIOS DE INTERNET. | G71: 2215-01. | H71: 21,210.00
A73: 2022-09-15 | B73: 16784 | C73: B1500000170 | D73: VS | E73: JOSE LUIS BEARD NUÑEZ | F73: COMPRA DE CAMIONES DE AGUA P/CISTERNA. | G73: 2217-01. | H73: 1,400.00
A74: 2022-09-28 | B74: 16788 | C74: B1500000171 | D74: VS | E74: JOSE LUIS BEARD NUÑEZ | F74: COMPRA DE CAMIONES DE AGUA P/CISTERNA. | G74: 2217-01. | H74: 700.00
A75: 2023-01-24 | B75: 17732 | C75: B1500000174 | D75: VS | E75: JOSE LUIS BEARD NUÑEZ | F75: COMPRA DE CAMIONES DE AGUA P/CISTERNA. | G75: 2217-01. | H75: 700.00
H76: =SUM(H73:H75) -> 2,800.00
A78: 2023-01-19 | B78: 17733 | C78: B1500192903 | D78: VS | E78: COMPAÑÍA DOMINICANA DE TELEFONOS, S.A. | F78: SERVICIOS TELEFONOS LOCALES. | G78: 2213-01. | H78: 111,607.53
A80: 2023-02-09 | B80: 17853 | C80: B1100000060 | D80: VS | E80: HAMLET CASTILLO 2%. | F80: FLETE. | G80: 2242-01. | H80: 2,500.00
A82: 2023-01-12 | B82: 17696 | C82: B1500000055 | D82: VS | E82: ISEMCA, SRL. | F82: SERVICIOS DE MANTENIMIENTO A PLANTA ELECTRICA. | G82: 2272-99. | H82: 101,598.00
A84: 2023-01-06 | B84: 17629 | C84: B1500020277 | D84: VS | E84: CORPORACION DE ACUEDUCTO Y ALC. | F84: SERVICIOS DE AGUA. | G84: 2217-01. | H84: 82,686.00
A86: 2023-01-03 | B86: 17556 | C86: B1500000226 | D86: VS | E86: DOMINGO CASTILLO. | F86: COMPRA DE FRUTAS Y VEGETALES | G86: 2313-02. | H86: 20,640.00
A87: 2023-01-03 | B87: 17555 | C87: B1500000227 | D87: VS | E87: DOMINGO CASTILLO. | F87: COMPRA DE FRUTAS Y VEGETALES | G87: 2313-02. | H87: 66,865.00
A88: 2023-01-10 | B88: 17603 | C88: B1500000228 | D88: VS | E88: DOMINGO CASTILLO. | F88: COMPRA DE FRUTAS Y VEGETALES | G88: 2313-02. | H88: 88,515.00
A89: 2023-01-16 | B89: 17644 | C89: B1500000230 | D89: VS | E89: DOMINGO CASTILLO. | F89: COMPRA DE FRUTAS Y VEGETALES | G89: 2313-02. | H89: 27,312.50
A90: 2023-01-16 | B90: 17645 | C90: B1500000231 | D90: VS | E90: DOMINGO CASTILLO. | F90: COMPRA DE FRUTAS Y VEGETALES | G90: 2313-02. | H90: 67,765.00
A91: 2023-01-20 | B91: 17707 | C91: B1500000232 | D91: VS | E91: DOMINGO CASTILLO. | F91: COMPRA DE FRUTAS Y VEGETALES | G91: 2313-02. | H91: 21,980.00
A92: 2023-01-20 | B92: 17708 | C92: B1500000233 | D92: VS | E92: DOMINGO CASTILLO. | F92: COMPRA DE FRUTAS Y VEGETALES | G92: 2313-02. | H92: 69,990.00
A93: 2023-01-31 | B93: 17749 | C93: B1500000234 | D93: VS | E93: DOMINGO CASTILLO. | F93: COMPRA DE FRUTAS Y VEGETALES | G93: 2313-02. | H93: 36,680.00
A94: 2023-01-31 | B94: 17750 | C94: B1500000235 | D94: VS | E94: DOMINGO CASTILLO. | F94: COMPRA DE FRUTAS Y VEGETALES | G94: 2313-02. | H94: 63,655.00
H95: =SUM(H86:H94) -> 463,402.50
A97: 2022-12-01 | B97: 17347 | C97: B1500002269 | D97: VS | E97: AYUNTAMIENTO MUNICIPAL PTO.PTA. SRL. | F97: SERVICIOS DE LIMPIEZA | G97: 2285-03. | H97: 15,000.00
A98: 2023-01-03 | B98: 17604 | C98: B1500002291 | D98: VS | E98: AYUNTAMIENTO MUNICIPAL PTO.PTA. SRL. | F98: SERVICIOS DE LIMPIEZA | G98: 2285-03. | H98: 15,000.00
H99: =SUM(H97:H98) -> 30,000.00
A101: 2023-01-06 | B101: 17595 | C101: B1500002210 | D101: VS | E101: INVERSIONES AQUARIUS, SRL. | F101: COMPRA DE HIELO Y AGUA. | G101: 2311-01 | H101: 1,800.00
A102: 2023-01-13 | B102: 17636 | C102: B1500002194 | D102: VS | E102: INVERSIONES AQUARIUS, SRL. | F102: COMPRA DE HIELO Y AGUA. | G102: 2311-01 | H102: 19,000.00
A103: 2023-01-26 | B103: 17741 | C103: B1500002218 | D103: VS | E103: INVERSIONES AQUARIUS, SRL. | F103: COMPRA DE HIELO Y AGUA. | G103: 2311-01. | H103: 1,800.00
H104: =SUM(H101:H103) -> 22,600.00
A106: 2023-01-31 | B106: 17764 | C106: B1500000216 | D106: VS | E106: MIGUEL LEONARDO LOPEZ.10% | F106: ALQUILER DE EQUIPOS PARA ESTUDIOS. | G106: 2253-04. | H106: 130,000.00
A108: 2023-01-17 | B108: 17706 | C108: B1500006492 | D108: VS | E108: REFRIPARTES, S.A. | F108: COMPRA DE AIRE ACONDICIONADO. | G108: 2654-01. | H108: 33,900.00
A110: 2023-02-24 | B110: 17934 | C110: B1100000062 | D110: VS | E110: HAMLET CASTILLO 2%. | F110: FLETES. | G110: 2242-01. | H110: 2,500.00
A112: 2022-10-31 | B112: 17096 | C112: B1500005097 | D112: VS | E112: ALMANZAR ESTEVEZ, SRL. | F112: REACTIVOS Y MATERIAL MEDICO QX. | G112: 2372-03/2393-01. | H112: 591,241.20
A113: 2022-11-02 | B113: 17130 | C113: B1500005109 | D113: VS | E113: ALMANZAR ESTEVEZ, SRL. | F113: REACTIVOS Y MATERIAL MEDICO QX. | G113: 2372-03/2393-01. | H113: 377,902.79
H114: =SUM(H112:H113) -> 969,143.99
A116: 2022-11-11 | B116: 17185 | C116: B1500001099 | D116: VS | E116: ALMASANA, SRL. | F116: MEDICAMENTOS. | G116: 2341-01 | H116: 25,380.00
A117: 2022-11-14 | B117: 17209 | C117: B1500001102 | D117: VS | E117: ALMASANA, SRL. | F117: MEDICAMENTOS Y MATERIAL MEDICO QX. | G117: 2341-01/2393-01. | H117: 109,750.00
H118: =SUM(H116:H117) -> 135,130.00
A120: 2022-11-18 | B120: 17256 | C120: B1500000228. | D120: VS | E120: AC BIOMATERIALES DOMINICANOS, SRL. | F120: MATERIAL MEDICO QX. | G120: 2393-01. | H120: 94,187.60
A122: 2023-01-16 | B122: 17646 | C122: B1500000090. | D122: VS | E122: ANGELA REYES. | F122: MATERIAL MEDICO QX. | G122: 2393-01 | H122: 110,625.00
A124: 2023-11-21 | B124: 17249 | C124: B1500003185 | D124: VS | E124: ANEST, SRL. | F124: MEDICAMENTOS. | G124: 2341-01 | H124: 72,000.00
A126: 2022-12-14 | B126: 17310 | C126: B1500010382 | D126: VS | E126: BIO NOVA, SRL. | F126: REACTIVOS Y MATERIAL MEDICO QX. | G126: 2372-03/2393-01. | H126: 143,360.00
A128: 2023-01-22 | B128: 17269 | C128: B1500030707. | D128: VS | E128: BIO NUCLEAR, S.A. | F128: MATERIAL MEDICO QX. | G128: 2393-01 | H128: 63,150.36
A130: 2022-11-04 | B130: 17141 | C130: B1500000687 | D130: VS | E130: BRENMARFA IMPORT, SRL. | F130: MEDICAMENTOS. | G130: 2341-01 | H130: 26,250.00
A131: 2022-11-11 | B131: 17182 | C131: B1500000694 | D131: VS | E131: BRENMARFA IMPORT, SRL. | F131: MATERIAL MEDICO QX. | G131: 2393-01 | H131: 17,700.00
A132: 2022-11-18 | B132: 17243 | C132: B1500000697 | D132: VS | E132: BRENMARFA IMPORT, SRL. | F132: MEDICAMENTOS. | G132: 2341-01 | H132: 4,000.00
A133: 2022-11-21 | B133: 17254 | C133: B1500000704 | D133: VS | E133: BRENMARFA IMPORT, SRL. | F133: MEDICAMENTOS. | G133: 2341-01 | H133: 65,500.00
H134: =SUM(H130:H133) -> 113,450.00
A136: 2022-12-12 | B136: 17421 | C136: B1500001587. | D136: VS | E136: CAPELLAN DENTAL ,SRL. | F136: MATERIAL MEDICO QX. | G136: 2393-01 | H136: 24,491.93
A138: 2023-01-04 | B138: 17552 | C138: B1500004848 | D138: VS | E138: CEDUCOMPP, SRL. | F138: SERVICIOS DE REPARACION | G138: 2272-02 | H138: 3,790.01
A139: 2023-01-10 | B139: 17609 | C139: B1500004851 | D139: VS | E139: CEDUCOMPP, SRL. | F139: PAPEL DE ESCRITORIO | G139: 2331-01 | H139: 17,750.15
A140: 2023-01-12 | B140: 17626 | C140: B1500004854 | D140: VS | E140: CEDUCOMPP, SRL. | F140: MATERIAL DE OFICINA E INFORMATICA | G140: 2392-01 | H140: 17,479.80
A141: 2023-01-16 | B141: 17646 | C141: B1500004865 | D141: VS | E141: CEDUCOMPP, SRL. | F141: MATERIAL DE OFICINA E INFORMATICA | G141: 2392-01 | H141: 3,740.03
A142: 2023-01-18 | B142: 17691 | C142: B1500004870 | D142: VS | E142: CEDUCOMPP, SRL. | F142: MATERIAL DE OFICINA E INFORMATICA | G142: 2392-01 | H142: 5,030.00
A143: 2023-01-25 | B143: 17728 | C143: B1500004883 | D143: VS | E143: CEDUCOMPP, SRL. | F143: MATERIAL DE OFICINA E INFORMATICA | G143: 2392-01 | H143: 1,180.00
A144: 2023-01-25 | B144: 17725 | C144: B1500004884 | D144: VS | E144: CEDUCOMPP, SRL. | F144: MATERIAL DE OFICINA E INFORMATICA | G144: 2392-01 | H144: 11,700.96
H145: =SUM(H138:H144) -> 60,670.95
A147: 2022-12-02 | B147: 17343 | C147: B1500001237 | D147: VS | E147: COPEM HOSPICLINIC, SRL. | F147: MEDICAMENTOS. | G147: 2341-01 | H147: 16,502.00
A148: 2022-12-05 | B148: 17368 | C148: B1500001251 | D148: VS | E148: COPEM HOSPICLINIC, SRL. | F148: MEDICAMENTOS. | G148: 2341-02 | H148: 245,606.24
A149: 2022-12-08 | B149: 17403 | C149: B1500001260 | D149: VS | E149: COPEM HOSPICLINIC, SRL. | F149: MATERIAL MEDICO QX. | G149: 2393-01 | H149: 7,400.40
H150: =SUM(H147:H149) -> 269,508.64
A152: 2022-12-01 | B152: 17324 | C152: B1500005843 | D152: VS | E152: CRUZ AYALA, SRL. | F152: REACTIVOS Y MATERIAL MEDICO QX. | G152: 2372-03/2393-01. | H152: 324,426.63
A154: 2022-11-14 | B154: 17208 | C154: B1500000467 | D154: VS | E154: CLINIMED, SRL. | F154: MATERIAL MEDICO QX. | G154: 2393-01 | H154: 62,025.00
A155: 2023-12-01 | B155: 17313 | C155: B1500000479 | D155: VS | E155: CLINIMED, SRL. | F155: MATERIAL MEDICO QX. | G155: 2393-01 | H155: 89,420.40
H156: =SUM(H154:H155) -> 151,445.40
A158: 2022-12-06 | B158: 17378 | C158: B1500000285. | D158: VS | E158: DIMEDOM, SRL. | F158: COMPRA DE PAPEL P/SONOGRAFIA. | G158: 2332-01. | H158: 11,341.92
A160: 2023-01-04 | B160: 17565 | C160: B1500001137 | D160: VS | E160: ELECTROMUBELES FRANCIS, SRL. | F160: ELECTRODOMESTICOS | G160: 2614-01. | H160: 60,450.00
A161: 2023-01-04 | B161: 17573 | C161: B1500001138 | D161: VS | E161: ELECTROMUBELES FRANCIS, SRL. | F161: MUEBLES DE OFICINA. | G161: 2611-01. | H161: 19,250.00
A162: 2023-01-23 | B162: 17719 | C162: B1500001142 | D162: VS | E162: ELECTROMUBELES FRANCIS, SRL. | F162: ELECTRODOMESTICOS | G162: 2614-01. | H162: 6,400.00
H163: =SUM(H160:H162) -> 86,100.00
A165: 2022-11-21 | B165: 17251 | C165: B1500001179 | D165: VS | E165: EPX DOMINICANA, SRL. | F165: MEDICAMENTOS. | G165: 2341-01 | H165: 12,750.00
A166: 2022-12-01 | B166: 17327 | C166: B1500001214 | D166: VS | E166: EPX DOMINICANA, SRL. | F166: MATERIAL MEDICO QX. | G166: 2393-01 | H166: 54,280.00
H167: =SUM(H165:H166) -> 67,030.00
A169: 2022-11-14 | B169: 17199 | C169: B1500003030 | D169: VS | E169: FARACH, S.A. | F169: MEDICAMENTOS. | G169: 2341-01 | H169: 253,160.00
A170: 2022-11-16 | B170: 17234 | C170: B1500003043 | D170: VS | E170: FARACH, S.A. | F170: MEDICAMENTOS. | G170: 2341-01 | H170: 62,000.00
A171: 2022-11-21 | B171: 17253 | C171: B1500003074 | D171: VS | E171: FARACH, S.A. | F171: MEDICAMENTOS. | G171: 2341-01 | H171: 20,366.00
A172: 2022-11-28 | B172: 17291 | C172: B1500003104 | D172: VS | E172: FARACH, S.A. | F172: MEDICAMENTOS. | G172: 2341-01 | H172: 137,500.00
H173: =SUM(H169:H172) -> 473,026.00
A175: 2023-01-25 | B175: 17737 | C175: B1500000259. | D175: VS | E175: FEC BIOMEDICAL, SRL. | F175: EQUIPO MEDICO. | G175: 2631-01. | H175: 101,008.00
A177: 2022-12-09 | B177: 17409 | C177: B1500014946 | D177: VS | E177: GAS ANTILLANO, S.A.S. | F177: COMPRA GAS. | G177: 2371-04 | H177: 1,298.88
A178: 2022-12-07 | B178: 17356 | C178: B1500014947 | D178: VS | E178: GAS ANTILLANO, S.A.S. | F178: COMPRA GAS. | G178: 2371-04 | H178: 1,859.76
A179: 2023-01-10 | B179: 17514 | C179: B1500015059 | D179: VS | E179: GAS ANTILLANO, S.A.S. | F179: COMPRA GAS. | G179: 2371-04 | H179: 3,690.00
A180: 2023-01-10 | B180: 17583 | C180: B1500015060 | D180: VS | E180: GAS ANTILLANO, S.A.S. | F180: COMPRA GAS. | G180: 2371-04 | H180: 2,228.76
A181: 2023-01-16 | B181: 17656 | C181: B1500015086 | D181: VS | E181: GAS ANTILLANO, S.A.S. | F181: COMPRA GAS. | G181: 2371-04 | H181: 56,100.00
A182: 2023-01-19 | B182: 17698 | C182: B1500015146 | D182: VS | E182: GAS ANTILLANO, S.A.S. | F182: COMPRA GAS. | G182: 2371-04 | H182: 1,771.20
A183: 2023-01-20 | B183: 17709 | C183: B1500015147 | D183: VS | E183: GAS ANTILLANO, S.A.S. | F183: COMPRA GAS. | G183: 2371-04 | H183: 3,690.00
A184: 2023-01-22 | B184: 17714 | C184: B1500015148 | D184: VS | E184: GAS ANTILLANO, S.A.S. | F184: COMPRA GAS. | G184: 2371-04 | H184: 2,391.12
H185: =SUM(H177:H184) -> 73,029.72
A187: 2022-12-02 | B187: 17338 | C187: B1500000080 | D187: VS | E187: GUZMAN PHARMACEUTICAL GUZPHARM, SRL. | F187: MATERIAL MEDICO QX. | G187: 2393-01 | H187: 25,350.00
A188: 2022-12-05 | B188: 17360 | C188: B1500000081 | D188: VS | E188: GUZMAN PHARMACEUTICAL GUZPHARM, SRL. | F188: MEDICAMENTOS,PAPEL Y MATERIAL MEDICO QX. | G188: 2341-01/2332-01/2393-01. | H188: 148,259.60
H189: =SUM(H187:H188) -> 173,609.60
A191: 2023-11-11 | B191: 17186 | C191: B1500002307 | D191: VS | E191: GRUPO FARMACEUTICO CAR-M, SRL. | F191: MEDICAMENTOS Y MATERIAL MEDICO QX. | G191: 2341-01/2393-01. | H191: 67,259.00
A192: 2022-11-14 | B192: 17211 | C192: B1500002312 | D192: VS | E192: GRUPO FARMACEUTICO CAR-M, SRL. | F192: MATERIAL MEDICO QX. | G192: 2393-01 | H192: 59,130.00
H193: =SUM(H191:H192) -> 126,389.00
A195: 2022-11-10 | B195: 17173 | C195: B1500005629 | D195: VS | E195: HOSPIFAR, SRL. | F195: MEDICAMENTOS. | G195: 2341-01 | H195: 148,190.00
A197: 2023-01-04 | B197: 17571 | C197: B1500000900 | D197: VS | E197: LA CASA FERRETERA DE PTO. PTA, SRL. | F197: ELECTRICOS | G197: 2396-01. | H197: 4,200.00
A198: 2023-01-05 | B198: 17582 | C198: B1500000901 | D198: VS | E198: LA CASA FERRETERA DE PTO. PTA, SRL. | F198: ELECTRICOS | G198: 2396-01. | H198: 3,500.00
A199: 2023-01-12 | B199: 17630 | C199: B1500000903 | D199: VS | E199: LA CASA FERRETERA DE PTO. PTA, SRL. | F199: HERRAMIENTAS MENORES. | G199: 2363-04. | H199: 18,655.00
A200: 2023-01-17 | B200: 17685 | C200: B1500000907 | D200: VS | E200: LA CASA FERRETERA DE PTO. PTA, SRL. | F200: HERRAMIENTAS MENORES,ELECTRICOS Y PINTURAS. | G200: 2363-04/2396-01/2372-06. | H200: 6,445.00
A201: 2023-01-19 | B201: 17695 | C201: B1500000908 | D201: VS | E201: LA CASA FERRETERA DE PTO. PTA, SRL. | F201: HERRAMIENTAS MENORES. | G201: 2363-04. | H201: 328.00
A202: 2023-01-20 | B202: 17711 | C202: B1500000909 | D202: VS | E202: LA CASA FERRETERA DE PTO. PTA, SRL. | F202: HERRAMIENTAS MENORES. | G202: 2363-04. | H202: 775.00
A203: 2023-01-23 | B203: 17717 | C203: B1500000910 | D203: VS | E203: LA CASA FERRETERA DE PTO. PTA, SRL. | F203: HERRAMIENTAS MENORES Y PINTURAS. | G203: 2363-04/2372-06. | H203: 14,865.00
A204: 2023-01-25 | B204: 17736 | C204: B1500000911 | D204: VS | E204: LA CASA FERRETERA DE PTO. PTA, SRL. | F204: HERRAMIENTAS MENORES. | G204: 2363-04. | H204: 560.00
H205: =SUM(H197:H204) -> 49,328.00
A207: 2022-12-02 | B207: 17335 | C207: B1500000240. | D207: VS | E207: MAXBIO PHARMA, SRL. | F207: MATERIAL MEDICO QX. | G207: 2393-01 | H207: 79,650.00
A209: 2022-12-01 | B209: 17309 | C209: B1500002350. | D209: VS | E209: MATEROF, SRL. | F209: MATERIAL DE OFICINA,PAPEL ESCRITORIO Y PLASTICOS. | G209: 2392-01/2331-01/2355-01 | H209: 113,274.25
A211: 2022-12-01 | B211: 17328 | C211: B1500003591 | D211: VS | E211: MEDISAN, SRL. | F211: MATERIAL MEDICO QX. | G211: 2393-01 | H211: 84,960.00
A212: 2022-12-05 | B212: 17372 | C212: B1500003604 | D212: VS | E212: MEDISAN, SRL. | F212: MATERIAL MEDICO QX. | G212: 2393-02 | H212: 109,430.00
H213: =SUM(H211:H212) -> 194,390.00
A215: 2022-11-14 | B215: 17212 | C215: B1500000063. | D215: VS | E215: MULTISERVICIOS CG, SRL. | F215: MATERIAL MEDICO QX. | G215: 2393-01 | H215: 25,256.44
A217: 2022-12-05 | B217: 17354 | C217: B1500000178. | D217: VS | E217: NINGG COMPANY, SRL. | F217: MEDICAMENTOS. | G217: 2341-01 | H217: 38,391.00
A219: 2022-11-11 | B219: 17179 | C219: B1500004350 | D219: VS | E219: OXAC, SRL. | F219: OXIGENOS | G219: 2372-99. | H219: 148,150.00
A220: 2022-11-14 | B220: 17194 | C220: B1500004354 | D220: VS | E220: OXAC, SRL. | F220: OXIGENOS | G220: 2372-99. | H220: 124,500.00
A221: 2022-11-15 | B221: 17220 | C221: B1500004356 | D221: VS | E221: OXAC, SRL. | F221: OXIGENOS | G221: 2372-99. | H221: 78,750.00
A222: 2022-11-16 | B222: 17231 | C222: B1500004357 | D222: VS | E222: OXAC, SRL. | F222: OXIGENOS | G222: 2372-99. | H222: 66,000.00
A223: 2022-11-17 | B223: 17236 | C223: B1500004358 | D223: VS | E223: OXAC, SRL. | F223: OXIGENOS | G223: 2372-99. | H223: 33,000.00
A224: 2022-11-18 | B224: 17242 | C224: B1500004360 | D224: VS | E224: OXAC, SRL. | F224: OXIGENOS | G224: 2372-99. | H224: 97,800.00
A225: 2022-11-21 | B225: 17247 | C225: B1500004362 | D225: VS | E225: OXAC, SRL. | F225: OXIGENOS | G225: 2372-99. | H225: 60,550.00
A226: 2022-11-22 | B226: 17258 | C226: B1500004364 | D226: VS | E226: OXAC, SRL. | F226: OXIGENOS | G226: 2372-99. | H226: 16,500.00
A227: 2022-11-23 | B227: 17268 | C227: B1500004365 | D227: VS | E227: OXAC, SRL. | F227: OXIGENOS | G227: 2372-99. | H227: 33,000.00
A228: 2022-11-24 | B228: 17272 | C228: B1500004367 | D228: VS | E228: OXAC, SRL. | F228: OXIGENOS | G228: 2372-99. | H228: 41,500.00
A229: 2022-11-25 | B229: 17282 | C229: B1500004371 | D229: VS | E229: OXAC, SRL. | F229: OXIGENOS | G229: 2372-99. | H229: 89,300.00
A230: 2022-11-28 | B230: 17287 | C230: B1500004372 | D230: VS | E230: OXAC, SRL. | F230: OXIGENOS | G230: 2372-99. | H230: 62,250.00
A231: 2022-11-29 | B231: 17297 | C231: B1500004373 | D231: VS | E231: OXAC, SRL. | F231: OXIGENOS | G231: 2372-99. | H231: 63,950.00
A232: 2022-11-30 | B232: 17299 | C232: B1500004374 | D232: VS | E232: OXAC, SRL. | F232: OXIGENOS | G232: 2372-99. | H232: 38,950.00
A233: 2022-12-01 | B233: 17314 | C233: B1500004376 | D233: VS | E233: OXAC, SRL. | F233: OXIGENOS | G233: 2372-99. | H233: 57,150.00
A234: 2022-12-02 | B234: 17332 | C234: B1500004379 | D234: VS | E234: OXAC, SRL. | F234: OXIGENOS | G234: 2372-99. | H234: 116,000.00
A235: 2022-12-05 | B235: 17345 | C235: B1500004381 | D235: VS | E235: OXAC, SRL. | F235: OXIGENOS | G235: 2372-99. | H235: 58,000.00
A236: 2022-12-06 | B236: 17379 | C236: B1500004382 | D236: VS | E236: OXAC, SRL. | F236: OXIGENOS | G236: 2372-99. | H236: 33,000.00
A237: 2022-12-07 | B237: 17392 | C237: B1500004384 | D237: VS | E237: OXAC, SRL. | F237: OXIGENOS | G237: 2372-99. | H237: 41,500.00
A238: 08/12/200 | B238: 17399 | C238: B1500004385 | D238: VS | E238: OXAC, SRL. | F238: OXIGENOS | G238: 2372-99. | H238: 33,000.00
A239: 2022-12-09 | B239: 17406 | C239: B1500004388 | D239: VS | E239: OXAC, SRL. | F239: OXIGENOS | G239: 2372-99. | H239: 132,500.00
H240: =SUM(H219:H239) -> 1,425,350.00
A242: 2022-12-06 | B242: 17396 | C242: B1500056094 | D242: VS | E242: PHARMACEUTICAL TECHONOLOGIA, S.A. | F242: MEDICAMENTOS. | G242: 2341-01 | H242: 8,100.00
A243: 2022-12-05 | B243: 17355 | C243: B1500056098 | D243: VS | E243: PHARMACEUTICAL TECHONOLOGIA, S.A. | F243: MEDICAMENTOS. | G243: 2341-01 | H243: 129,965.00
H244: =SUM(H242:H243) -> 138,065.00
A246: 2023-02-04 | B246: 17896 | C246: B1500000052 | D246: VS | E246: MANUEL ISELSO RIVERA VASQUEZ. | F246: MANTENIMIENTO DE VEHICULOS. | G246: 2272-06. | H246: 16,555.40
A247: 2023-02-03 | B247: 17821 | C247: B1500000053 | D247: VS | E247: MANUEL ISELSO RIVERA VASQUEZ. | F247: MANTENIMIENTO DE VEHICULOS. | G247: 2272-06. | H247: 31,034.00
A248: 2023-02-03 | B248: 17895 | C248: B1500000055 | D248: VS | E248: MANUEL ISELSO RIVERA VASQUEZ. | F248: MANTENIMIENTO DE VEHICULOS. | G248: 2272-06. | H248: 13,145.20
A249: 2023-02-01 | B249: 17775 | C249: B1500000056 | D249: VS | E249: MANUEL ISELSO RIVERA VASQUEZ. | F249: MANTENIMIENTO DE VEHICULOS. | G249: 2272-06. | H249: 43,394.05
A250: 2023-02-10 | B250: 17863 | C250: B1500000057 | D250: VS | E250: MANUEL ISELSO RIVERA VASQUEZ. | F250: MANTENIMIENTO DE VEHICULOS. | G250: 2272-06. | H250: 28,314.10
H251: =SUM(H246:H250) -> 132,442.75
A253: 2022-12-30 | B253: 17541 | C253: B1500000105. | D253: VS | E253: LABORATORIO CLINICO PUERTO PTA. | F253: ESTUDIOS REALIZADOS. | G253: 2287-06. | H253: 3,530.00
A255: 2022-12-05 | B255: 17387 | C255: B1500000104 | D255: VS | E255: MANANTIALES DEL ATLANTICO, SRL. | F255: ALIMENTOS. | G255: 2311-01. | H255: 7,335.00
A256: 2022-11-25 | B256: 17388 | C256: B1500000105 | D256: VS | E256: MANANTIALES DEL ATLANTICO, SRL. | F256: ALIMENTOS. | G256: 2311-01. | H256: 5,265.00
... 84 more rows
